[Event "*** Titled Tuesday Blitz"]
[Site "Chess.com"]
[Date "2019.12.03"]
[Round "1"]
[White "Filip_Covic"]
[Black "GrigorGrigorov"]
[Result "0-1"]
[WhiteElo "2450"]
[BlackElo "2828"]
[TimeControl "180+2"]
[EndTime "13:10:19 PST"]
[Termination "GrigorGrigorov won by resignation"]

1. e4 {[%clk 0:03:01.5]} 1... c6 {[%clk 0:03:00.3]} 2. d4 {[%clk 0:02:58.8]}
2... d5 {[%clk 0:03:01.3]} 3. f3 {[%clk 0:02:58.2]} 3... g6 {[%clk 0:03:00.1]}
4. Nc3 {[%clk 0:02:52.1]} 4... Bg7 {[%clk 0:03:00.7]} 5. Be3 {[%clk 0:02:49.4]}
5... dxe4 {[%clk 0:02:56.3]} 6. fxe4 {[%clk 0:02:46.4]} 6... Nf6 {[%clk
0:02:57.7]} 7. Nf3 {[%clk 0:02:41.8]} 7... O-O {[%clk 0:02:50.8]} 8. Be2 {[%clk
0:02:27.8]} 8... c5 {[%clk 0:02:07.3]} 9. dxc5 {[%clk 0:02:13.2]} 9... Qa5
{[%clk 0:02:07.5]} 10. O-O {[%clk 0:02:11.9]} 10... Ng4 {[%clk 0:02:07.5]} 11.
Bd4 {[%clk 0:01:20.8]} 11... Bxd4+ {[%clk 0:02:06.8]} 12. Qxd4 {[%clk
0:01:19.1]} 12... Nc6 {[%clk 0:02:07.3]} 13. b4 {[%clk 0:00:58.5]} 13... Qxb4
{[%clk 0:01:51.4]} 14. Qxb4 {[%clk 0:00:58.6]} 14... Nxb4 {[%clk 0:01:53.3]} 15.
Nd4 {[%clk 0:00:59.4]} 15... Ne3 {[%clk 0:01:50.3]} 16. Rf3 {[%clk 0:00:50.2]}
16... Nbxc2 {[%clk 0:01:47.3]} 17. Nxc2 {[%clk 0:00:50.9]} 17... Nxc2 {[%clk
0:01:48.1]} 18. Rd1 {[%clk 0:00:50.8]} 18... Nb4 {[%clk 0:01:29.7]} 19. a3
{[%clk 0:00:50.5]} 19... Nc6 {[%clk 0:01:30.3]} 20. Nd5 {[%clk 0:00:50.8]} 20...
Kg7 {[%clk 0:01:16.1]} 21. Rb3 {[%clk 0:00:47.1]} 21... e5 {[%clk 0:00:58.7]}
22. Bb5 {[%clk 0:00:46.6]} 22... Nd4 {[%clk 0:00:58.3]} 23. Rb4 {[%clk
0:00:45.7]} 23... Bg4 {[%clk 0:00:55.9]} 24. Rc1 {[%clk 0:00:42.3]} 24... Be2
{[%clk 0:00:43.5]} 25. Rxd4 {[%clk 0:00:33.5]} 25... Bxb5 {[%clk 0:00:44.1]} 26.
Rb4 {[%clk 0:00:31.4]} 26... Bc6 {[%clk 0:00:45]} 27. Ne7 {[%clk 0:00:32.5]}
27... a5 {[%clk 0:00:44]} 28. Rb6 {[%clk 0:00:23.2]} 28... Bxe4 {[%clk
0:00:43.5]} 29. Re1 {[%clk 0:00:23.1]} 29... Rfe8 {[%clk 0:00:42.5]} 30. Rxe4
{[%clk 0:00:15]} 30... Rxe7 {[%clk 0:00:43.5]} 31. c6 {[%clk 0:00:16.6]} 31...
bxc6 {[%clk 0:00:43.4]} 32. Rxc6 {[%clk 0:00:18.5]} 32... f5 {[%clk 0:00:44.5]}
33. Ra4 {[%clk 0:00:16.2]} 33... e4 {[%clk 0:00:45.5]} 34. Kf2 {[%clk
0:00:16.4]} 34... Rd8 {[%clk 0:00:42.6]} 35. Ke2 {[%clk 0:00:16.7]} 35... Red7
{[%clk 0:00:37.8]} 36. Rc2 {[%clk 0:00:16]} 36... Rd5 {[%clk 0:00:38.1]} 37.
Rac4 {[%clk 0:00:16.6]} 37... R8d7 {[%clk 0:00:39]} 38. Rc8 {[%clk 0:00:14.5]}
38... f4 {[%clk 0:00:37.3]} 39. Re8 {[%clk 0:00:14.3]} 39... e3 {[%clk
0:00:38.1]} 40. Rec8 {[%clk 0:00:11.4]} 40... Rd2+ {[%clk 0:00:38.8]} 41. Kf3
{[%clk 0:00:12.1]} 41... Rxc2 {[%clk 0:00:39]} 42. Rxc2 {[%clk 0:00:12]} 42...
g5 {[%clk 0:00:36.8]} 43. h4 {[%clk 0:00:10.9]} 43... h6 {[%clk 0:00:34.2]} 44.
hxg5 {[%clk 0:00:11.2]} 44... hxg5 {[%clk 0:00:35.3]} 45. Rc5 {[%clk 0:00:12.5]}
45... Kf6 {[%clk 0:00:33.8]} 46. Rc6+ {[%clk 0:00:13.6]} 46... Ke5 {[%clk
0:00:32.9]} 47. Rc5+ {[%clk 0:00:15.1]} 47... Kd4 {[%clk 0:00:33.6]} 48. Rxg5
{[%clk 0:00:15.5]} 48... Re7 {[%clk 0:00:29.2]} 49. Ke2 {[%clk 0:00:14.1]} 49...
Rb7 {[%clk 0:00:30]} 50. Rxa5 {[%clk 0:00:09.7]} 50... Rb2+ {[%clk 0:00:30.8]}
51. Kf1 {[%clk 0:00:09.5]} 51... Rf2+ {[%clk 0:00:26.1]} 52. Kg1 {[%clk
0:00:09]} 52... Ra2 {[%clk 0:00:27.1]} 53. Kf1 {[%clk 0:00:09.2]} 53... Ra1+
{[%clk 0:00:23.2]} 54. Ke2 {[%clk 0:00:09.9]} 54... Ra2+ {[%clk 0:00:23.2]} 55.
Kf1 {[%clk 0:00:10.8]} 55... Kd3 {[%clk 0:00:23.7]} 56. Rd5+ {[%clk 0:00:10.9]}
56... Ke4 {[%clk 0:00:24.7]} 57. Ra5 {[%clk 0:00:12.1]} 57... Ra1+ {[%clk
0:00:21.6]} 58. Ke2 {[%clk 0:00:12.9]} 58... Rg1 {[%clk 0:00:22.6]} 59. Ra4+
{[%clk 0:00:14]} 59... Kf5 {[%clk 0:00:23.8]} 60. Kf3 {[%clk 0:00:14.7]} 60...
Rf1+ {[%clk 0:00:24.6]} 61. Ke2 {[%clk 0:00:13.4]} 61... Rf2+ {[%clk 0:00:26.1]}
62. Ke1 {[%clk 0:00:14.2]} 62... Rxg2 {[%clk 0:00:27.6]} 63. Ra8 {[%clk
0:00:12.8]} 63... Ra2 {[%clk 0:00:27.8]} 64. Ra7 {[%clk 0:00:14.7]} 64... Ke4
{[%clk 0:00:28.8]} 65. Re7+ {[%clk 0:00:15.5]} 65... Kf3 {[%clk 0:00:29.9]} 0-1

[Event "*** Titled Tuesday Blitz"]
[Site "Chess.com"]
[Date "2019.12.03"]
[Round "1"]
[White "piscatorox"]
[Black "johnathan113"]
[Result "0-1"]
[WhiteElo "2229"]
[BlackElo "2583"]
[TimeControl "180+2"]
[EndTime "13:10:24 PST"]
[Termination "johnathan113 won by resignation"]

1. e4 {[%clk 0:03:01.9]} 1... c5 {[%clk 0:02:59.7]} 2. Nf3 {[%clk 0:03:03.1]}
2... g6 {[%clk 0:03:01.3]} 3. d4 {[%clk 0:03:04.2]} 3... cxd4 {[%clk 0:03:03.2]}
4. Qxd4 {[%clk 0:03:05.3]} 4... Nf6 {[%clk 0:03:04.1]} 5. h3 {[%clk 0:03:06.2]}
5... Nc6 {[%clk 0:03:04.8]} 6. Qe3 {[%clk 0:03:07]} 6... Bg7 {[%clk 0:03:04.8]}
7. c4 {[%clk 0:03:07.5]} 7... d6 {[%clk 0:02:59.5]} 8. Nc3 {[%clk 0:03:07.2]}
8... O-O {[%clk 0:02:59.2]} 9. Be2 {[%clk 0:03:01.3]} 9... Nd7 {[%clk
0:02:55.3]} 10. O-O {[%clk 0:02:59.2]} 10... Nc5 {[%clk 0:02:56.3]} 11. Rb1
{[%clk 0:02:54.6]} 11... a5 {[%clk 0:02:56]} 12. b3 {[%clk 0:02:53.8]} 12...
Bxc3 {[%clk 0:02:54.9]} 13. Qxc3 {[%clk 0:02:53.3]} 13... Nxe4 {[%clk
0:02:56.4]} 14. Qe3 {[%clk 0:02:51.2]} 14... Nf6 {[%clk 0:02:57.1]} 15. Qh6
{[%clk 0:02:45]} 15... Bf5 {[%clk 0:02:53.7]} 16. Ra1 {[%clk 0:02:36.4]} 16...
Re8 {[%clk 0:02:31.6]} 17. Bb2 {[%clk 0:02:15.3]} 17... e5 {[%clk 0:02:31]} 18.
Rfd1 {[%clk 0:02:07.8]} 18... Qe7 {[%clk 0:02:31.6]} 19. Ba3 {[%clk 0:01:42.1]}
19... Nb4 {[%clk 0:02:27.8]} 20. Bxb4 {[%clk 0:01:29.4]} 20... axb4 {[%clk
0:02:28.6]} 21. Qd2 {[%clk 0:01:29]} 21... d5 {[%clk 0:02:21.3]} 22. cxd5 {[%clk
0:01:29.3]} 22... Rad8 {[%clk 0:02:22.5]} 23. Qh6 {[%clk 0:01:26.1]} 23... Rxd5
{[%clk 0:02:20.6]} 24. Ng5 {[%clk 0:01:24.4]} 24... Rxd1+ {[%clk 0:02:19.4]} 25.
Rxd1 {[%clk 0:01:24.8]} 25... Qf8 {[%clk 0:02:20.5]} 26. Qh4 {[%clk 0:01:19.2]}
26... h6 {[%clk 0:02:14.6]} 27. Nf3 {[%clk 0:01:12.7]} 27... g5 {[%clk
0:02:14.1]} 28. Qc4 {[%clk 0:01:10.8]} 28... Bg6 {[%clk 0:02:00.5]} 29. Qb5
{[%clk 0:01:09]} 29... Ne4 {[%clk 0:02:00.1]} 30. Qxb7 {[%clk 0:01:06.3]} 30...
Nc3 {[%clk 0:02:00.7]} 31. Re1 {[%clk 0:01:06.3]} 31... Be4 {[%clk 0:01:48.2]}
32. Qa6 {[%clk 0:01:02.4]} 32... Ra8 {[%clk 0:01:44.9]} 33. Qf6 {[%clk
0:00:57.2]} 33... Rxa2 {[%clk 0:01:40.5]} 34. Bc4 {[%clk 0:00:54.4]} 34... Qg7
{[%clk 0:01:29.8]} 35. Qd8+ {[%clk 0:00:43.1]} 35... Kh7 {[%clk 0:01:27.8]} 36.
Qe8 {[%clk 0:00:39]} 36... Bxf3 {[%clk 0:01:24.3]} 37. gxf3 {[%clk 0:00:38.6]}
37... Ra7 {[%clk 0:01:15.2]} 38. Bd3+ {[%clk 0:00:38.6]} 38... e4 {[%clk
0:01:14.4]} 39. Rxe4 {[%clk 0:00:38.9]} 39... f5 {[%clk 0:01:07.6]} 40. Re5
{[%clk 0:00:31.1]} 40... Qf7 {[%clk 0:00:47.7]} 41. Bxf5+ {[%clk 0:00:29]} 41...
Kg7 {[%clk 0:00:48.9]} 42. Qd8 {[%clk 0:00:21.3]} 42... Qf6 {[%clk 0:00:43.1]}
43. Qb8 {[%clk 0:00:18]} 43... Rf7 {[%clk 0:00:38.5]} 44. Bg4 {[%clk 0:00:17.1]}
44... Qf4 {[%clk 0:00:31.3]} 45. Re8 {[%clk 0:00:12]} 45... Ne2+ {[%clk
0:00:22.9]} 46. Kf1 {[%clk 0:00:10.6]} 46... Qxb8 {[%clk 0:00:11.8]} 47. Rxb8
{[%clk 0:00:11.1]} 47... Nf4 {[%clk 0:00:11.6]} 48. Rxb4 {[%clk 0:00:12.3]}
48... h5 {[%clk 0:00:13.5]} 49. Bc8 {[%clk 0:00:12.3]} 49... Rc7 {[%clk
0:00:14.7]} 50. Rb7 {[%clk 0:00:13.8]} 50... Rxb7 {[%clk 0:00:12.5]} 51. Bxb7
{[%clk 0:00:15.2]} 51... Nxh3 {[%clk 0:00:14]} 52. b4 {[%clk 0:00:15.3]} 52...
Nf4 {[%clk 0:00:14.6]} 53. Be4 {[%clk 0:00:16.4]} 53... Ne6 {[%clk 0:00:14.4]}
54. b5 {[%clk 0:00:17.3]} 54... Nc5 {[%clk 0:00:14.8]} 55. b6 {[%clk 0:00:18.6]}
55... h4 {[%clk 0:00:14.9]} 56. b7 {[%clk 0:00:20]} 56... Na6 {[%clk 0:00:15.1]}
57. Kg2 {[%clk 0:00:19.7]} 57... Kf6 {[%clk 0:00:16.3]} 58. Kh3 {[%clk
0:00:16.7]} 58... Nb8 {[%clk 0:00:14]} 59. Bc6 {[%clk 0:00:13.7]} 59... Nxc6
{[%clk 0:00:14.6]} 0-1

[Event "*** Titled Tuesday Blitz"]
[Site "Chess.com"]
[Date "2019.12.03"]
[Round "1"]
[White "vova-79"]
[Black "TigranLPetrosyan"]
[Result "0-1"]
[WhiteElo "2469"]
[BlackElo "2884"]
[TimeControl "180+2"]
[EndTime "13:10:37 PST"]
[Termination "TigranLPetrosyan won on time"]

1. d4 {[%clk 0:02:59.9]} 1... d5 {[%clk 0:02:58.8]} 2. c4 {[%clk 0:03:00.1]}
2... c6 {[%clk 0:03:00]} 3. Nc3 {[%clk 0:03:00.6]} 3... Nf6 {[%clk 0:02:57.9]}
4. cxd5 {[%clk 0:02:57.6]} 4... cxd5 {[%clk 0:02:58.6]} 5. f3 {[%clk 0:02:58.3]}
5... Nc6 {[%clk 0:03:00.5]} 6. e4 {[%clk 0:02:58.7]} 6... e6 {[%clk 0:03:00.9]}
7. e5 {[%clk 0:02:59.1]} 7... Nd7 {[%clk 0:03:01.8]} 8. f4 {[%clk 0:02:59.6]}
8... a6 {[%clk 0:02:53.1]} 9. Nf3 {[%clk 0:02:59.5]} 9... b5 {[%clk 0:02:53.7]}
10. Bd3 {[%clk 0:02:58.7]} 10... f5 {[%clk 0:02:47.2]} 11. exf6 {[%clk
0:02:39.9]} 11... Nxf6 {[%clk 0:02:47.6]} 12. O-O {[%clk 0:02:39]} 12... Bb4
{[%clk 0:02:47.8]} 13. a4 {[%clk 0:02:33.3]} 13... bxa4 {[%clk 0:02:44.9]} 14.
Rxa4 {[%clk 0:02:27.3]} 14... O-O {[%clk 0:02:43.2]} 15. Kh1 {[%clk 0:02:26.8]}
15... Bd7 {[%clk 0:02:42.4]} 16. Ra1 {[%clk 0:02:21.3]} 16... Qb6 {[%clk
0:02:30.7]} 17. Be3 {[%clk 0:02:15.3]} 17... Ng4 {[%clk 0:02:25]} 18. Bg1 {[%clk
0:02:15]} 18... Rxf4 {[%clk 0:02:18.9]} 19. Bxh7+ {[%clk 0:02:00.1]} 19... Kh8
{[%clk 0:02:11.6]} 20. Bg6 {[%clk 0:01:34.9]} 20... Raf8 {[%clk 0:02:04.4]} 21.
Qe2 {[%clk 0:01:21.6]} 21... Qd8 {[%clk 0:01:51.4]} 22. h3 {[%clk 0:01:13.7]}
22... Nh6 {[%clk 0:01:47.7]} 23. Ne5 {[%clk 0:01:03.2]} 23... Nxe5 {[%clk
0:01:16.3]} 24. dxe5 {[%clk 0:00:50.3]} 24... Bxc3 {[%clk 0:01:16.3]} 25. Rxf4
{[%clk 0:00:42.4]} 25... Rxf4 {[%clk 0:01:13.8]} 26. bxc3 {[%clk 0:00:42.6]}
26... Bb5 {[%clk 0:01:02.7]} 27. Qd2 {[%clk 0:00:28.3]} 27... Rf8 {[%clk
0:00:56.8]} 28. Be3 {[%clk 0:00:27.9]} 28... Qh4 {[%clk 0:00:42.8]} 29. Bg5
{[%clk 0:00:26.7]} 29... Qg3 {[%clk 0:00:24.5]} 30. Bxh6 {[%clk 0:00:16.9]}
30... Qxg6 {[%clk 0:00:21.1]} 31. Bf4 {[%clk 0:00:15.7]} 31... Qe4 {[%clk
0:00:20.9]} 32. Bg3 {[%clk 0:00:14]} 32... Rf5 {[%clk 0:00:21.2]} 33. Re1 {[%clk
0:00:13]} 33... Qd3 {[%clk 0:00:20.9]} 34. Qxd3 {[%clk 0:00:10.3]} 34... Bxd3
{[%clk 0:00:22.8]} 35. Rd1 {[%clk 0:00:10.2]} 35... Rf1+ {[%clk 0:00:23.6]} 36.
Rxf1 {[%clk 0:00:10]} 36... Bxf1 {[%clk 0:00:25.5]} 37. Kg1 {[%clk 0:00:11.9]}
37... Bc4 {[%clk 0:00:21.1]} 38. Bf2 {[%clk 0:00:12.5]} 38... a5 {[%clk
0:00:22.2]} 39. Bc5 {[%clk 0:00:13.3]} 39... Kh7 {[%clk 0:00:23.7]} 40. Kf2
{[%clk 0:00:13.9]} 40... Kg6 {[%clk 0:00:24.7]} 41. g4 {[%clk 0:00:15.7]} 41...
a4 {[%clk 0:00:24.8]} 42. Kg3 {[%clk 0:00:15.8]} 42... Be2 {[%clk 0:00:24.5]}
43. h4 {[%clk 0:00:15.7]} 43... Bd1 {[%clk 0:00:25.2]} 44. h5+ {[%clk
0:00:13.4]} 44... Kh6 {[%clk 0:00:20.4]} 45. Kh4 {[%clk 0:00:12.9]} 45... Be2
{[%clk 0:00:17.3]} 46. g5+ {[%clk 0:00:12.7]} 46... Kh7 {[%clk 0:00:18.4]} 47.
g6+ {[%clk 0:00:12.6]} 47... Kg8 {[%clk 0:00:19.6]} 48. Kg5 {[%clk 0:00:09.2]}
48... Bd3 {[%clk 0:00:20.8]} 49. Ba3 {[%clk 0:00:08.9]} 49... Bc2 {[%clk
0:00:22]} 50. Bb4 {[%clk 0:00:09.3]} 50... Bd3 {[%clk 0:00:12.2]} 51. Ba3 {[%clk
0:00:08.8]} 51... Bb1 {[%clk 0:00:13.2]} 52. Bb4 {[%clk 0:00:08.8]} 52... Bc2
{[%clk 0:00:14.7]} 53. Ba3 {[%clk 0:00:08.9]} 53... Bd3 {[%clk 0:00:16.2]} 54.
Bb4 {[%clk 0:00:03.4]} 54... Bc4 {[%clk 0:00:18.1]} 55. Ba3 {[%clk 0:00:03.9]}
55... d4 {[%clk 0:00:20]} 56. Bb4 {[%clk 0:00:05]} 56... d3 {[%clk 0:00:21]} 57.
Ba3 {[%clk 0:00:04.5]} 57... d2 {[%clk 0:00:22.3]} 0-1

[Event "*** Titled Tuesday Blitz"]
[Site "Chess.com"]
[Date "2019.12.03"]
[Round "1"]
[White "Glufs"]
[Black "IMTominho"]
[Result "1/2-1/2"]
[WhiteElo "2369"]
[BlackElo "2712"]
[TimeControl "180+2"]
[EndTime "13:10:37 PST"]
[Termination "Game drawn by agreement"]

1. Nf3 {[%clk 0:02:52.7]} 1... d5 {[%clk 0:03:00.3]} 2. g3 {[%clk 0:02:52.8]}
2... Nf6 {[%clk 0:03:00.3]} 3. Bg2 {[%clk 0:02:53.8]} 3... Bf5 {[%clk
0:03:00.5]} 4. c4 {[%clk 0:02:51.9]} 4... e6 {[%clk 0:03:01.2]} 5. O-O {[%clk
0:02:52.1]} 5... c6 {[%clk 0:02:58.5]} 6. Qb3 {[%clk 0:02:52.3]} 6... Qb6 {[%clk
0:02:57.5]} 7. cxd5 {[%clk 0:02:35.1]} 7... exd5 {[%clk 0:02:57.4]} 8. d3 {[%clk
0:02:24.5]} 8... Nbd7 {[%clk 0:02:51.8]} 9. Be3 {[%clk 0:02:22]} 9... Bc5 {[%clk
0:02:52.1]} 10. Bxc5 {[%clk 0:02:21.9]} 10... Nxc5 {[%clk 0:02:54]} 11. Qc2
{[%clk 0:02:21.7]} 11... O-O {[%clk 0:02:53.9]} 12. Nc3 {[%clk 0:02:22.6]} 12...
h6 {[%clk 0:02:53.4]} 13. Rfe1 {[%clk 0:02:11]} 13... Rfe8 {[%clk 0:02:53.3]}
14. Rac1 {[%clk 0:01:59.3]} 14... Rad8 {[%clk 0:02:44.6]} 15. Nb1 {[%clk
0:01:41.3]} 15... Ne6 {[%clk 0:02:40.7]} 16. Nbd2 {[%clk 0:01:42.1]} 16... Bh7
{[%clk 0:02:39.2]} 17. Nb3 {[%clk 0:01:42.5]} 17... Ng4 {[%clk 0:02:31]} 18. e3
{[%clk 0:01:38.9]} 18... Rc8 {[%clk 0:02:27.4]} 19. h3 {[%clk 0:01:36.6]} 19...
Nf6 {[%clk 0:02:27.4]} 20. Red1 {[%clk 0:01:35.8]} 20... c5 {[%clk 0:02:23.2]}
21. Qc3 {[%clk 0:01:34]} 21... Red8 {[%clk 0:02:16.1]} 22. Qe5 {[%clk
0:01:27.9]} 22... Qa6 {[%clk 0:02:01.3]} 23. Qc3 {[%clk 0:01:24.6]} 23... b6
{[%clk 0:01:55.7]} 24. a3 {[%clk 0:01:22.5]} 24... Qa4 {[%clk 0:01:54.4]} 25.
Kh2 {[%clk 0:01:20.8]} 25... Rc7 {[%clk 0:01:43]} 26. Nbd2 {[%clk 0:01:21.2]}
26... Qa6 {[%clk 0:01:39.2]} 27. Bf1 {[%clk 0:01:20.8]} 27... d4 {[%clk
0:01:35.2]} 28. Qc4 {[%clk 0:01:17.5]} 28... Qxc4 {[%clk 0:01:33.3]} 29. Nxc4
{[%clk 0:01:17.6]} 29... dxe3 {[%clk 0:01:34.1]} 30. fxe3 {[%clk 0:01:18.1]}
30... Kf8 {[%clk 0:01:11.3]} 31. Kg1 {[%clk 0:01:17.9]} 31... Nd5 {[%clk
0:01:05.6]} 32. Kf2 {[%clk 0:01:17.7]} 32... Ne7 {[%clk 0:01:06.4]} 33. g4
{[%clk 0:01:15.9]} 33... Nc6 {[%clk 0:01:03.7]} 34. Be2 {[%clk 0:01:15.4]} 34...
Rcd7 {[%clk 0:01:03.4]} 35. Nfe5 {[%clk 0:01:15.4]} 35... Nxe5 {[%clk
0:01:04.9]} 36. Nxe5 {[%clk 0:01:16.1]} 36... Rd6 {[%clk 0:01:04.8]} 37. Nc4
{[%clk 0:01:15.9]} 37... Rd5 {[%clk 0:01:05.5]} 38. Rc3 {[%clk 0:01:14]} 38...
f6 {[%clk 0:01:05.2]} 39. a4 {[%clk 0:01:12.8]} 39... Ng5 {[%clk 0:01:01.1]} 40.
Kg3 {[%clk 0:01:12.8]} 40... Nf7 {[%clk 0:00:57.5]} 41. Kf2 {[%clk 0:01:08.6]}
41... Ke7 {[%clk 0:00:58.2]} 42. b3 {[%clk 0:01:06.6]} 42... Ne5 {[%clk
0:00:57.1]} 43. Nxe5 {[%clk 0:01:06.5]} 43... Rxe5 {[%clk 0:00:59]} 44. d4
{[%clk 0:01:05.9]} 44... Red5 {[%clk 0:00:59.2]} 45. Bf3 {[%clk 0:01:05.9]}
45... cxd4 {[%clk 0:00:51.6]} 46. Rc7+ {[%clk 0:01:03.2]} 46... R5d7 {[%clk
0:00:52]} 47. Rxd7+ {[%clk 0:01:04.2]} 47... Rxd7 {[%clk 0:00:53]} 48. Rxd4
{[%clk 0:01:05.1]} 48... Rc7 {[%clk 0:00:44.1]} 49. Be4 {[%clk 0:01:04.8]} 49...
Bg8 {[%clk 0:00:44.1]} 50. Bd5 {[%clk 0:01:05.5]} 50... Bxd5 {[%clk 0:00:36.3]}
51. Rxd5 {[%clk 0:01:06.1]} 51... Rc3 {[%clk 0:00:38.2]} 52. Rb5 {[%clk
0:01:06.5]} 52... Kd6 {[%clk 0:00:37.1]} 53. Kf3 {[%clk 0:01:06.8]} 53... Kc6
{[%clk 0:00:32.8]} 54. Ke4 {[%clk 0:01:00.6]} 54... a6 {[%clk 0:00:33.1]} 55.
Kd4 {[%clk 0:00:48.6]} 55... Rc1 {[%clk 0:00:15.2]} 56. Rf5 {[%clk 0:00:49.1]}
56... Rh1 {[%clk 0:00:15.2]} 57. Rh5 {[%clk 0:00:49.1]} 57... Rb1 {[%clk
0:00:15.7]} 58. Kc3 {[%clk 0:00:48.8]} 58... Rd1 {[%clk 0:00:14.9]} 59. Kc2
{[%clk 0:00:48.9]} 59... Rd5 {[%clk 0:00:15.8]} 60. Rxd5 {[%clk 0:00:36.6]}
60... Kxd5 {[%clk 0:00:17.7]} 61. Kd3 {[%clk 0:00:33.2]} 61... a5 {[%clk
0:00:18.7]} 62. h4 {[%clk 0:00:32.8]} 62... g6 {[%clk 0:00:19]} 63. e4+ {[%clk
0:00:31.9]} 63... Ke5 {[%clk 0:00:18.2]} 64. Ke3 {[%clk 0:00:32.4]} 64... f5
{[%clk 0:00:10.9]} 65. exf5 {[%clk 0:00:32.1]} 65... gxf5 {[%clk 0:00:12.8]} 66.
g5 {[%clk 0:00:28.8]} 66... hxg5 {[%clk 0:00:12.4]} 67. hxg5 {[%clk 0:00:29.8]}
67... f4+ {[%clk 0:00:14.3]} 68. Kf3 {[%clk 0:00:30.1]} 68... Kf5 {[%clk
0:00:15.8]} 69. g6 {[%clk 0:00:31.3]} 69... Kxg6 {[%clk 0:00:17]} 70. Kxf4
{[%clk 0:00:32.6]} 70... Kf6 {[%clk 0:00:18.6]} 71. Ke4 {[%clk 0:00:33.9]} 71...
Ke6 {[%clk 0:00:20.2]} 72. Kd4 {[%clk 0:00:34.1]} 72... Kd6 {[%clk 0:00:21.7]}
73. Kc4 {[%clk 0:00:35]} 73... Kc6 {[%clk 0:00:23.2]} 74. b4 {[%clk 0:00:33.7]}
1/2-1/2

[Event "*** Titled Tuesday Blitz"]
[Site "Chess.com"]
[Date "2019.12.03"]
[Round "1"]
[White "MajorCoast"]
[Black "M1711"]
[Result "1-0"]
[WhiteElo "2131"]
[BlackElo "2535"]
[TimeControl "180+2"]
[EndTime "13:10:54 PST"]
[Termination "MajorCoast won by checkmate"]

1. d4 {[%clk 0:03:00.4]} 1... g6 {[%clk 0:02:59.8]} 2. Nf3 {[%clk 0:03:01.2]}
2... Bg7 {[%clk 0:03:00.4]} 3. e4 {[%clk 0:03:02.7]} 3... d6 {[%clk 0:03:01.1]}
4. Nc3 {[%clk 0:03:03.6]} 4... Nf6 {[%clk 0:03:00.9]} 5. h3 {[%clk 0:03:05]}
5... O-O {[%clk 0:03:01]} 6. Be3 {[%clk 0:03:06.4]} 6... Nc6 {[%clk 0:02:58.6]}
7. Be2 {[%clk 0:03:04.9]} 7... e5 {[%clk 0:02:57.8]} 8. dxe5 {[%clk 0:03:05]}
8... Nxe5 {[%clk 0:02:56.7]} 9. Nxe5 {[%clk 0:03:05.3]} 9... dxe5 {[%clk
0:02:58.6]} 10. O-O {[%clk 0:03:05.8]} 10... c6 {[%clk 0:02:58.6]} 11. Bc4
{[%clk 0:03:05.2]} 11... Qe7 {[%clk 0:02:44.7]} 12. a4 {[%clk 0:03:02.8]} 12...
Be6 {[%clk 0:02:44.3]} 13. Qe2 {[%clk 0:02:55.8]} 13... a5 {[%clk 0:02:41.2]}
14. Rfd1 {[%clk 0:02:42]} 14... Bxc4 {[%clk 0:02:08.3]} 15. Qxc4 {[%clk
0:02:43.9]} 15... Qb4 {[%clk 0:02:10.1]} 16. Qa2 {[%clk 0:02:03.3]} 16... Nxe4
{[%clk 0:01:44.7]} 17. Nxe4 {[%clk 0:01:59.4]} 17... Qxe4 {[%clk 0:01:46.6]} 18.
Qb3 {[%clk 0:01:54.4]} 18... Qb4 {[%clk 0:01:08]} 19. Qxb4 {[%clk 0:01:43.4]}
19... axb4 {[%clk 0:01:09.9]} 20. Bc5 {[%clk 0:01:44.4]} 20... Rfd8 {[%clk
0:01:10.4]} 21. Rxd8+ {[%clk 0:01:39.8]} 21... Rxd8 {[%clk 0:01:10.9]} 22. Bxb4
{[%clk 0:01:41.5]} 22... e4 {[%clk 0:01:10.7]} 23. c3 {[%clk 0:01:34.3]} 23...
Rd2 {[%clk 0:01:09.4]} 24. Rb1 {[%clk 0:01:01.5]} 24... f5 {[%clk 0:01:09.7]}
25. Kf1 {[%clk 0:01:00.2]} 25... Kf7 {[%clk 0:01:07.2]} 26. Ke1 {[%clk
0:01:00.6]} 26... Rc2 {[%clk 0:01:03.5]} 27. Rd1 {[%clk 0:00:55.3]} 27... Ke6
{[%clk 0:00:50.3]} 28. Ba3 {[%clk 0:00:55.6]} 28... Bf6 {[%clk 0:00:42.5]} 29.
Rd2 {[%clk 0:00:54.8]} 29... Rxd2 {[%clk 0:00:36.8]} 30. Kxd2 {[%clk 0:00:56.7]}
30... Kd5 {[%clk 0:00:36.8]} 31. b3 {[%clk 0:00:53.1]} 31... f4 {[%clk
0:00:35.1]} 32. Bb2 {[%clk 0:00:51.7]} 32... Ke6 {[%clk 0:00:26.2]} 33. Ke2
{[%clk 0:00:41.5]} 33... h5 {[%clk 0:00:25]} 34. Bc1 {[%clk 0:00:36.4]} 34... g5
{[%clk 0:00:22.5]} 35. Bd2 {[%clk 0:00:35.8]} 35... Kf5 {[%clk 0:00:22]} 36. g3
{[%clk 0:00:26.4]} 36... fxg3 {[%clk 0:00:08.1]} 37. fxg3 {[%clk 0:00:28.3]}
37... g4 {[%clk 0:00:09.4]} 38. h4 {[%clk 0:00:25.2]} 38... Be5 {[%clk
0:00:05.8]} 39. Be1 {[%clk 0:00:23.8]} 39... Ke6 {[%clk 0:00:06.2]} 40. Ke3
{[%clk 0:00:24.3]} 40... Kf5 {[%clk 0:00:05.9]} 41. b4 {[%clk 0:00:19.3]} 41...
Bb8 {[%clk 0:00:04.4]} 42. c4 {[%clk 0:00:18.8]} 42... Be5 {[%clk 0:00:02.7]}
43. b5 {[%clk 0:00:18.1]} 43... Bc7 {[%clk 0:00:03.9]} 44. c5 {[%clk 0:00:17]}
44... Be5 {[%clk 0:00:03.5]} 45. b6 {[%clk 0:00:16.7]} 45... Bf6 {[%clk
0:00:03.8]} 46. a5 {[%clk 0:00:17.4]} 46... Be7 {[%clk 0:00:04.9]} 47. Kd4
{[%clk 0:00:17.1]} 47... Bf6+ {[%clk 0:00:05.7]} 48. Ke3 {[%clk 0:00:17.6]}
48... Be5 {[%clk 0:00:06.8]} 49. Bf2 {[%clk 0:00:15.3]} 49... Bc3 {[%clk
0:00:05.6]} 50. a6 {[%clk 0:00:14.2]} 50... bxa6 {[%clk 0:00:07.5]} 51. b7
{[%clk 0:00:13.2]} 51... Be5 {[%clk 0:00:08.8]} 52. Be1 {[%clk 0:00:13.7]} 52...
Bb8 {[%clk 0:00:07.3]} 53. Kf2 {[%clk 0:00:09.7]} 53... Ke5 {[%clk 0:00:07.6]}
54. Bd2 {[%clk 0:00:08.3]} 54... Kd5 {[%clk 0:00:03.8]} 55. Bf4 {[%clk
0:00:09.1]} 55... Ba7 {[%clk 0:00:04.9]} 56. b8=Q {[%clk 0:00:10.2]} 56... Bxb8
{[%clk 0:00:06.2]} 57. Bxb8 {[%clk 0:00:11.9]} 57... Kxc5 {[%clk 0:00:07.7]} 58.
Ke3 {[%clk 0:00:11.7]} 58... Kd5 {[%clk 0:00:07.2]} 59. Bc7 {[%clk 0:00:11.2]}
59... c5 {[%clk 0:00:07.7]} 60. Ba5 {[%clk 0:00:12.5]} 60... c4 {[%clk 0:00:09]}
61. Bc3 {[%clk 0:00:12.6]} 61... Kc6 {[%clk 0:00:06.3]} 62. Kxe4 {[%clk
0:00:13.6]} 62... Kc5 {[%clk 0:00:08.2]} 63. Kf5 {[%clk 0:00:12.1]} 63... Kd5
{[%clk 0:00:06.4]} 64. Kg5 {[%clk 0:00:12.8]} 64... Ke4 {[%clk 0:00:07.5]} 65.
Kxh5 {[%clk 0:00:13.7]} 65... Kd3 {[%clk 0:00:03.9]} 66. Ba5 {[%clk 0:00:14.1]}
66... c3 {[%clk 0:00:03.7]} 67. Bxc3 {[%clk 0:00:14.4]} 67... Kxc3 {[%clk
0:00:05]} 68. Kxg4 {[%clk 0:00:14.7]} 68... a5 {[%clk 0:00:05.9]} 69. h5 {[%clk
0:00:15.9]} 69... a4 {[%clk 0:00:07.8]} 70. h6 {[%clk 0:00:17.3]} 70... a3
{[%clk 0:00:09.7]} 71. h7 {[%clk 0:00:18.9]} 71... a2 {[%clk 0:00:11.6]} 72.
h8=Q+ {[%clk 0:00:20]} 72... Kd3 {[%clk 0:00:13]} 73. Qa1 {[%clk 0:00:20.2]}
73... Ke2 {[%clk 0:00:14.9]} 74. Qxa2+ {[%clk 0:00:21.2]} 74... Kf1 {[%clk
0:00:16.8]} 75. Kf3 {[%clk 0:00:21.9]} 75... Kg1 {[%clk 0:00:18.5]} 76. Qg2#
{[%clk 0:00:22.5]} 1-0